bitfinex/quotes_SOLUSD_20241223
["timestamp","ask_amount","ask_price","bid_price","bid_amount"]
[1734972232142,20.4,184.16,184.11,20.64945494]
[1734972232321,20.4,184.15,184.12,20.64945494]
[1734972232639,20.4,184.15,184.13,20.64945494]
[1734972234918,20.4,184.15,184.14,20.64945494]
[1734972235121,20.4,184.18,184.14,20.64945494]
[1734972235432,20.4,184.18,184.13,20.64945494]
[1734972235760,20.4,184.18,184.12,20.64945494]
[1734972236045,20.4,184.18,184.11,20.64945494]
[1734972236243,20.4,184.17,184.07,13.5817]
[1734972236450,20.4,184.17,184.13,20.64945494]
[1734972236648,6.1883,184.19,184.14,20.64945494]
[1734972236852,20.4,184.18,184.15,20.64945494]
[1734972237445,20.4,184.18,184.11,0.12549]
[1734972237630,6.1883,184.19,184.03,13.5845]
[1734972237631,20.4,184.16,184.03,13.5845]
[1734972237833,20.4,184.15,184.06,20.64945494]
[1734972238040,20.4,184.14,184.06,20.64945494]
[1734972238228,21.9034,184.13,184.04,12.77943833]
[1734972238535,20.4,184.12,184.04,12.77943833]
[1734972238922,20.4,184.12,184.0,15.1477]
[1734972239124,20.4,184.12,184.06,12.77943833]
[1734972239351,20.4,184.11,184.08,12.77943833]
[1734972239555,20.4,184.12,184.08,12.77943833]
[1734972240352,20.4,184.16,184.07,20.44314778]
[1734972240743,20.4,184.15,184.07,20.44314778]
[1734972241528,20.4,184.15,184.05,20.44314778]
[1734972242361,20.4,184.14,184.05,20.44314778]
[1734972242543,21.0858,184.08,184.01,20.44314778]
[1734972243455,19.5,184.06,184.01,20.44314778]
[1734972247051,19.5,184.04,183.97,20.44314778]
[1734972247860,6.5697,184.03,183.97,20.44314778]
[1734972249975,6.5697,184.03,183.99,20.44314778]
[1734972250282,6.5697,184.03,184.01,20.44314778]
[1734972250461,20.0,184.07,183.96,34.03294778]
[1734972250462,26.3219,184.07,184.02,20.44314778]
[1734972250989,20.0,184.06,184.01,20.44314778]
[1734972252089,20.0,184.05,183.99,20.44314778]
[1734972252253,6.3219,184.07,184.0,20.44314778]
[1734972252587,20.0,184.08,184.06,20.44314778]
[1734972252970,20.0,184.11,184.06,20.44314778]
[1734972253575,20.0,184.16,184.1,20.44314778]
[1734972253776,26.2056,184.17,184.12,20.44314778]
[1734972254869,20.0,184.16,184.1,20.44314778]
[1734972255496,20.0,184.15,184.08,20.44314778]
[1734972256390,20.0,184.15,184.06,20.44314778]
[1734972257465,20.0,184.14,184.06,20.44314778]
[1734972258488,20.0,184.14,184.09,20.44314778]
[1734972258689,20.0,184.14,184.07,20.44314778]
[1734972259501,20.0,184.13,184.09,20.44314778]
[1734972260421,20.0,184.13,184.07,20.44314778]
[1734972261094,6.2056,184.17,184.05,20.44314778]
[1734972261095,20.0,184.11,184.05,20.44314778]
[1734972261390,6.2056,184.17,184.05,20.44314778]
[1734972261391,20.0,184.1,184.05,20.44314778]
[1734972261690,6.2056,184.17,184.03,20.44314778]
[1734972261691,20.0,184.09,184.03,20.44314778]
[1734972261895,20.0,184.07,184.03,20.44314778]
[1734972262081,20.0,184.05,183.99,20.44314778]
[1734972262280,20.0,184.05,183.95,8.40194198]
[1734972262281,20.0,184.04,183.98,12.78776491]
[1734972264407,20.0,184.05,184.02,12.78776491]
[1734972264609,20.0,184.14,184.04,12.78776491]
[1734972264781,20.0,184.12,184.07,12.78776491]
[1734972264978,20.0,184.11,184.09,12.78776491]
[1734972265193,26.5822,184.13,184.09,12.78776491]
[1734972265530,20.0,184.13,184.09,12.78776491]
[1734972266178,20.0,184.16,184.09,20.43651922]
[1734972267071,20.0,184.15,184.09,20.43651922]
[1734972267268,20.0,184.14,184.09,20.43651922]
[1734972267712,20.0,184.13,184.09,20.43651922]
[1734972268214,20.0,184.16,184.11,20.43651922]
[1734972268710,20.0,184.15,184.09,20.43651922]
[1734972269511,20.0,184.16,184.11,20.43651922]
[1734972270594,20.0,184.14,184.06,20.43651922]
[1734972270803,20.0,184.13,184.08,20.43651922]
[1734972270994,20.0,184.12,184.06,20.43651922]
[1734972271302,20.0,184.11,184.06,20.43651922]
[1734972271501,20.0,184.11,184.01,13.5861]
[1734972271502,20.0,184.1,184.04,20.43651922]
[1734972271875,26.3122,184.08,184.02,20.43651922]
[1734972272701,6.3122,184.08,184.04,20.43651922]
[1734972275440,20.0,184.07,184.02,20.43651922]
[1734972275580,20.0,184.05,184.0,20.43651922]
[1734972276076,20.0,184.05,184.02,20.43651922]
[1734972276780,26.3122,184.08,184.04,20.43651922]
[1734972277010,20.0,184.11,184.06,20.43651922]
[1734972277233,20.0,184.1,184.06,20.43651922]
[1734972277992,20.0,184.09,184.06,20.43651922]
[1734972278188,20.0,184.08,184.06,20.43651922]
[1734972280013,20.0,184.11,184.04,20.0]
[1734972280319,20.0,184.1,184.03,20.43651922]
[1734972280507,20.0,184.08,184.01,20.43651922]
[1734972280883,20.0,184.05,183.97,20.43651922]
[1734972281300,20.0,184.04,184.01,20.43651922]
[1734972281519,20.0,184.06,184.03,20.43651922]
[1734972281723,20.0,184.06,184.04,20.43651922]
[1734972281888,20.0,184.1,184.04,20.43651922]
[1734972283103,20.0,184.09,184.06,20.43651922]
[1734972283631,20.0,184.11,184.06,20.43651922]
[1734972283986,20.0,184.1,184.08,20.43651922]
[1734972284186,20.0,184.11,184.06,20.43651922]
[1734972284726,20.0,184.1,184.09,20.43651922]
[1734972284929,20.0,184.11,184.07,20.43651922]
[1734972287940,20.0,184.1,184.07,20.43651922]
[1734972288250,20.0,184.14,184.07,12.77602361]
[1734972288416,20.0,184.2,184.13,12.77602361]
[1734972288741,20.0,184.19,184.13,12.77602361]
[1734972288937,20.0,184.2,184.17,12.77602361]
[1734972289140,20.0,184.19,184.15,12.77602361]
[1734972289430,20.0,184.21,184.13,12.77602361]
[1734972289636,20.0,184.2,184.12,12.77602361]
[1734972291304,20.0,184.19,184.11,12.77602361]
[1734972292617,20.0,184.18,184.12,12.77602361]
[1734972294142,20.0,184.17,184.12,12.77602361]
[1734972294649,20.0,184.16,184.13,12.77602361]
[1734972295555,20.0,184.16,184.12,12.77602361]
[1734972297255,20.0,184.21,184.11,12.77602361]
[1734972297419,20.0,184.19,184.08,12.77602361]
[1734972298126,20.0,184.19,184.09,12.77602361]
[1734972298943,20.0,184.18,184.11,12.77602361]
[1734972299620,20.0,184.17,184.11,12.77602361]
[1734972299962,20.0,184.19,184.05,12.77602361]
[1734972300153,20.0,184.19,184.15,12.77602361]
[1734972300447,20.0,184.17,184.13,12.77602361]
[1734972300748,20.0,184.19,184.14,12.77602361]
[1734972300955,20.0,184.18,184.13,12.77602361]
[1734972301631,20.0,184.17,184.14,12.77602361]
[1734972302161,20.0,184.19,184.13,12.77602361]
[1734972302459,20.0,184.18,184.13,12.77602361]
[1734972303326,20.0,184.17,184.14,12.77602361]
[1734972303532,20.0,184.21,184.16,12.77602361]
[1734972303729,20.0,184.21,184.18,12.77602361]
[1734972303934,6.4124,184.22,184.18,12.77602361]
[1734972306071,20.0,184.24,184.18,12.77602361]
[1734972306646,20.0,184.23,184.2,12.77602361]
[1734972306842,20.0,184.26,184.19,12.77602361]
[1734972307250,20.0,184.25,184.18,12.77602361]
[1734972307772,20.0,184.24,184.17,12.77602361]
[1734972307931,6.5134,184.27,184.14,13.576]
[1734972307932,20.0,184.23,184.15,12.77602361]
[1734972308128,20.0,184.23,184.11,8.40194198]
[1734972308360,20.0,184.22,184.11,21.17796559]
[1734972308740,20.0,184.22,184.12,12.77602361]
[1734972309052,20.0,184.21,184.11,12.77602361]
[1734972309265,20.0,184.21,184.12,12.77602361]
[1734972309671,20.0,184.21,184.11,12.77602361]
[1734972309838,20.0,184.21,184.12,12.77602361]
[1734972310553,20.0,184.21,184.13,12.77602361]
[1734972311537,20.0,184.24,184.13,20.0]
[1734972311740,20.0,184.26,184.2,12.77602361]
[1734972311965,20.0,184.26,184.19,12.77602361]
[1734972312139,20.0,184.25,184.17,12.77602361]
[1734972312340,20.0,184.24,184.15,12.77602361]
[1734972312541,20.0,184.22,184.14,12.77602361]
[1734972312767,20.0,184.22,184.12,12.77602361]
[1734972313468,20.0,184.22,184.13,12.77602361]
[1734972313648,20.0,184.2,184.12,12.77602361]
[1734972314260,20.0,184.2,184.11,12.77602361]
[1734972314579,20.0,184.15,184.06,8.40194198]
[1734972314769,20.0,184.14,184.07,12.77602361]
[1734972315434,20.0,184.14,184.08,12.77602361]
[1734972315639,20.0,184.14,184.09,12.77602361]
[1734972315870,20.0,184.14,184.07,12.77602361]
[1734972316045,20.0,184.14,184.08,12.77602361]
[1734972316570,20.0,184.13,184.06,12.77602361]
[1734972316781,20.0,184.1,184.03,12.77602361]
[1734972316983,20.0,184.09,184.04,12.77602361]
[1734972317655,20.0,184.08,184.03,12.77602361]
[1734972318065,43.776884,184.16,184.03,12.77602361]
[1734972318381,7.6483,184.15,184.03,12.77602361]
[1734972319981,7.6483,184.15,184.04,12.77602361]
[1734972320146,7.6483,184.15,184.0,13.5862]
[1734972320147,7.6483,184.15,184.03,12.77602361]
[1734972320350,27.849784,184.14,184.02,12.77602361]
[1734972320553,1.6571,184.1,183.99,12.77602361]
[1734972320767,21.6571,184.1,183.99,12.77602361]
[1734972320958,20.0,184.08,183.97,12.77602361]
[1734972321158,20.0,184.08,183.98,12.77602361]
[1734972321358,20.0,184.08,183.96,13.5892]
[1734972321359,20.0,184.08,183.97,12.77602361]
[1734972321686,20.0,184.08,183.98,12.77602361]
[1734972322062,26.1144,184.06,183.95,12.77602361]
[1734972322375,20.0,184.05,183.96,12.77602361]
[1734972322578,20.0,184.04,183.93,8.40194198]
[1734972322764,20.0,184.04,183.94,12.77602361]
[1734972322960,20.0,184.04,183.93,21.17796559]
[1734972323276,45.331984,184.03,183.9,21.17796559]
[1734972323483,23.776884,184.01,183.9,8.40194198]
[1734972323775,23.776884,184.01,183.91,12.77602361]
[1734972324279,20.0,183.98,183.88,8.40194198]
[1734972324689,20.0,183.98,183.9,12.77602361]
[1734972324901,20.0,183.98,183.91,12.77602361]
[1734972325059,20.0,183.98,183.9,12.77602361]
[1734972325387,20.0,183.98,183.89,12.77602361]
[1734972325580,20.0,183.98,183.9,12.77602361]
[1734972326075,20.0,183.96,183.88,12.77602361]
[1734972326391,20.0,183.95,183.87,12.77602361]
[1734972328060,20.0,183.92,183.85,12.77602361]
[1734972328371,6.0192,183.91,183.85,12.77602361]
[1734972328576,20.0,183.88,183.85,12.77602361]
[1734972328787,20.0,183.9,183.83,12.77602361]
[1734972328972,1.07407677,183.9,183.83,12.77602361]
[1734972329481,3.1,183.88,183.82,12.77602361]
[1734972329993,3.1,183.87,183.79,12.77602361]
[1734972330197,3.1,183.86,183.77,12.77602361]
[1734972330383,3.1,183.84,183.79,12.77602361]
[1734972330573,3.1,183.82,183.79,12.77602361]
[1734972330902,3.1,183.87,183.81,12.77602361]
[1734972331263,3.1,183.85,183.78,12.77602361]
[1734972331503,3.1,183.83,183.75,12.77602361]
[1734972331817,9.6381,183.83,183.75,12.77602361]
[1734972331997,3.1,183.82,183.77,12.77602361]
[1734972332675,3.1,183.82,183.76,12.77602361]
[1734972333018,3.1,183.81,183.76,12.77602361]
[1734972333877,3.1,183.8,183.74,12.77602361]
[1734972334075,3.1,183.79,183.71,12.77602361]
[1734972334278,23.1,183.79,183.71,12.77602361]
[1734972334480,23.1,183.79,183.73,12.77602361]
[1734972334671,3.1,183.78,183.73,12.77602361]
[1734972334989,3.1,183.76,183.73,12.77602361]
[1734972336878,3.1,183.79,183.71,12.77602361]
[1734972337175,3.1,183.78,183.7,12.77602361]
[1734972337792,3.1,183.78,183.69,12.77602361]
[1734972337988,3.1,183.77,183.68,12.77602361]
[1734972338190,20.0,183.8,183.64,13.45138961]
[1734972338191,9.179,183.75,183.64,13.45138961]
[1734972338410,3.1,183.73,183.64,0.675366]
[1734972338614,3.1,183.72,183.64,0.675366]
[1734972338769,23.1,183.72,183.64,0.675366]
[1734972338977,1.5052,183.71,183.64,0.675366]
[1734972339201,3.1,183.69,183.64,0.675366]
[1734972339910,1.5052,183.71,183.64,0.675366]
[1734972340097,6.079,183.75,183.65,12.77602361]
[1734972340404,6.079,183.75,183.69,20.53077729]
[1734972340405,0.4,183.74,183.69,20.53077729]
[1734972340769,6.079,183.75,183.72,20.53077729]
[1734972341001,6.5031,183.8,183.72,20.53077729]
[1734972341295,0.4,183.78,183.72,20.53077729]
[1734972341473,6.9031,183.8,183.75,20.53077729]
[1734972341676,6.9031,183.8,183.73,20.53077729]
[1734972341874,0.4,183.79,183.72,20.0]
[1734972342082,0.4,183.79,183.74,20.53077729]
[1734972342508,0.4,183.79,183.75,20.53077729]
[1734972343006,6.5031,183.8,183.74,20.53077729]
[1734972343237,6.5031,183.8,183.73,40.53077729]
[1734972343449,6.20179,183.87,183.73,20.53077729]
[1734972343610,23.776884,183.86,183.75,20.53077729]
[1734972344219,23.776884,183.86,183.73,20.53077729]
[1734972344744,6.0763,183.87,183.79,20.53077729]
[1734972346929,1.07407677,183.9,183.75,33.605]
[1734972346930,1.07407677,183.9,183.81,20.53077729]
[1734972347138,1.07407677,183.9,183.83,20.53077729]
[1734972351151,1.07407677,183.9,183.86,20.53077729]
[1734972351546,1.07407677,183.9,183.89,20.0]
[1734972351751,1.07407677,183.9,183.88,20.53077729]
[1734972352249,6.611,183.96,183.88,20.53077729]
[1734972354066,1.6432,183.98,183.91,20.53077729]
[1734972354231,6.0567,184.0,183.94,20.53077729]
[1734972354448,1.5998,184.03,183.95,20.53077729]
[1734972354975,6.0567,184.05,183.96,20.53077729]
[1734972355183,6.0567,184.05,183.98,20.53077729]
[1734972355339,1.5998,184.08,184.0,20.53077729]
[1734972355540,6.0567,184.09,184.0,20.53077729]
[1734972355870,6.0567,184.09,183.97,20.0]
[1734972356079,6.0567,184.09,183.98,20.0]
[1734972356872,20.0,184.06,183.91,13.5932]
[1734972357085,20.0,184.06,183.89,20.53077729]
[1734972357262,0.12549,184.03,183.88,20.53077729]
[1734972357575,23.902374,184.03,183.88,20.53077729]
[1734972357781,23.902374,184.03,183.9,20.53077729]
[1734972357968,23.902374,184.03,183.89,20.53077729]
[1734972358282,23.902374,184.03,183.87,13.5959]
[1734972358283,10.6214,184.04,183.93,20.53077729]
[1734972358446,6.5461,184.04,183.92,20.53077729]
[1734972358854,6.5461,184.04,183.91,20.53077729]
[1734972359344,6.5461,184.04,183.91,40.53077729]
[1734972359541,6.5461,184.04,183.97,20.53077729]
[1734972359778,1.5818,184.05,183.97,20.53077729]
[1734972360385,1.6524,184.11,183.99,20.53077729]
[1734972360574,1.6524,184.11,183.98,20.53077729]
[1734972361291,1.6524,184.11,184.0,20.53077729]
[1734972361890,1.6524,184.11,183.95,20.0475]
[1734972361891,20.12549,184.1,183.95,40.57827729]
[1734972362092,20.12549,184.1,183.96,20.53077729]
[1734972362259,20.0,184.1,183.97,20.53077729]
[1734972362753,6.4994,184.09,183.97,20.53077729]
[1734972363152,6.4994,184.09,183.93,20.53077729]
[1734972363153,20.0,184.05,183.93,20.53077729]
[1734972363366,20.0,184.05,183.91,13.5931]
[1734972363367,20.0,184.05,183.92,20.53077729]
[1734972363566,20.0,184.05,183.93,20.53077729]
[1734972363972,20.0,184.05,183.94,20.53077729]
[1734972364181,20.0,184.05,183.95,20.53077729]
[1734972364774,27.851184,184.08,183.96,20.53077729]
[1734972364968,27.851184,184.08,183.95,20.53077729]
[1734972366204,6.4994,184.09,183.99,20.53077729]
[1734972366366,6.4994,184.09,184.02,20.53077729]
[1734972366557,1.6524,184.11,184.03,20.53077729]
[1734972366762,1.6524,184.11,184.02,20.53077729]
[1734972367171,1.6524,184.11,184.06,20.53077729]
[1734972367377,6.0931,184.15,184.08,20.53077729]
[1734972367589,1.6454,184.16,184.1,20.53077729]
[1734972367761,6.0931,184.2,184.11,20.53077729]
[1734972368114,6.0931,184.2,184.12,20.53077729]
[1734972368260,6.0931,184.2,184.13,20.53077729]
[1734972368604,6.0931,184.2,184.1,20.53077729]
[1734972369305,6.0931,184.2,184.11,20.53077729]
[1734972369510,6.0931,184.2,184.09,20.53077729]
[1734972369718,6.0931,184.2,184.08,20.53077729]
[1734972369912,6.0931,184.2,184.09,20.53077729]
[1734972370072,6.0931,184.2,184.08,20.53077729]
[1734972370418,6.0931,184.2,184.09,20.53077729]
[1734972370909,6.0931,184.2,183.99,13.5873]
[1734972370910,23.902374,184.15,183.99,13.5873]
[1734972371075,23.902374,184.15,183.95,18.46988397]
[1734972371076,6.5436,184.08,183.95,16.80388397]
[1734972371279,25.327784,184.07,183.92,28.93271927]
[1734972371695,20.0,184.04,183.92,8.40194198]
[1734972371917,20.0,184.04,183.93,20.53077729]
[1734972372127,1.5509,184.07,183.94,0.12549]
[1734972372916,1.5509,184.07,183.97,20.53077729]
[1734972373805,1.5509,184.07,183.99,20.53077729]
[1734972374111,6.5436,184.08,183.99,20.53077729]
[1734972374425,6.5436,184.08,184.01,20.53077729]
[1734972375189,6.5436,184.08,183.99,20.53077729]
[1734972375487,6.5436,184.08,183.98,13.5878]
[1734972375727,6.5436,184.08,183.99,20.53077729]
[1734972376221,6.5436,184.08,184.0,33.23723894]
[1734972376402,6.5436,184.08,184.02,33.23723894]
[1734972376931,4.072,184.19,183.97,0.12549]
[1734972376932,6.5708,184.13,184.04,33.23723894]
[1734972377109,6.5708,184.13,184.07,33.23723894]
[1734972377639,6.5708,184.13,184.04,33.23723894]
[1734972377821,6.5708,184.13,184.04,0.12549]
[1734972378148,6.5708,184.13,184.03,33.23723894]
[1734972378298,6.5708,184.13,184.0,33.23723894]
[1734972378502,6.5708,184.13,184.0,13.5869]
[1734972378699,6.5708,184.13,184.05,33.23723894]
[1734972380003,6.5708,184.13,184.07,33.23723894]
[1734972380302,6.0126,184.18,184.11,33.23723894]
[1734972380510,1.5831,184.21,184.13,33.23723894]
[1734972380722,6.0126,184.22,184.15,33.23723894]
[1734972381025,8.0166,184.27,184.17,33.23723894]
[1734972382232,8.0166,184.27,184.15,33.23723894]
[1734972382631,8.0166,184.27,184.17,33.23723894]
[1734972382813,8.0166,184.27,184.19,33.23723894]
[1734972383024,8.0166,184.27,184.17,33.23723894]
[1734972384629,8.0166,184.27,184.17,46.81163894]
[1734972385221,8.0166,184.27,184.2,20.0]
[1734972385518,8.0166,184.27,184.13,46.81423894]
[1734972385735,23.902374,184.26,184.1,33.23723894]
[1734972385941,23.902374,184.26,184.09,13.58]
[1734972386348,8.0166,184.27,184.12,33.23723894]
[1734972386536,8.0166,184.27,184.14,33.23723894]
[1734972387227,8.0166,184.27,184.17,20.0]
[1734972390757,6.4197,184.27,184.17,20.0]
[1734972391054,14.069,184.32,184.17,20.0]
[1734972391435,20.0,184.29,184.16,20.0]
[1734972391829,14.069,184.32,184.19,33.23723894]
[1734972392039,14.069,184.32,184.18,33.23723894]
[1734972392255,14.069,184.32,184.17,53.23723894]
[1734972392740,14.069,184.32,184.17,33.23723894]
[1734972393463,14.069,184.32,184.19,33.23723894]
[1734972394058,6.1322,184.29,184.19,33.23723894]
[1734972394232,6.1322,184.29,184.18,57.01412294]
[1734972395251,6.1322,184.29,184.19,33.23723894]
[1734972395636,6.1322,184.29,184.2,33.23723894]
[1734972396140,6.1322,184.29,184.19,33.23723894]
[1734972396327,6.1322,184.29,184.13,13.5767]
[1734972396530,20.0,184.26,184.11,33.23723894]
[1734972397058,20.0,184.26,184.12,33.23723894]
[1734972397355,20.0,184.26,184.11,33.23723894]
[1734972397654,0.12549,184.25,184.09,33.23723894]
[1734972397873,6.4252,184.23,184.09,33.23723894]
[1734972398162,6.4252,184.23,184.09,20.43460216]
[1734972398466,20.0,184.2,184.06,20.43460216]
[1734972398632,20.0,184.2,184.07,20.43460216]
[1734972398954,20.0,184.2,184.08,20.43460216]
[1734972399258,0.12549,184.22,184.09,20.43460216]
[1734972399468,0.12549,184.22,184.08,20.43460216]
[1734972400174,0.12549,184.22,184.09,20.43460216]
[1734972400378,6.4252,184.23,184.14,20.43460216]
[1734972400668,0.675366,184.28,184.14,20.43460216]
[1734972400669,7.100566,184.28,184.18,20.43460216]
[1734972401577,7.100566,184.28,184.2,20.43460216]
[1734972402243,7.100566,184.28,184.19,33.16901142]
[1734972402850,7.100566,184.28,184.17,33.16901142]
[1734972403282,7.100566,184.28,184.16,33.16901142]
[1734972403465,7.100566,184.28,184.17,33.16901142]
[1734972403776,7.100566,184.28,184.16,33.16901142]
[1734972404086,7.100566,184.28,184.14,23.776884]
[1734972404087,7.100566,184.28,184.17,33.16901142]
[1734972404378,7.100566,184.28,184.16,33.16901142]
[1734972404677,7.100566,184.28,184.15,33.16901142]
[1734972404841,7.100566,184.28,184.16,33.16901142]
[1734972405652,7.100566,184.28,184.17,33.16901142]
[1734972405858,7.100566,184.28,184.15,33.16901142]
[1734972406254,7.100566,184.28,184.16,33.16901142]
[1734972408053,7.100566,184.28,184.15,33.16901142]
[1734972408587,7.100566,184.28,184.17,33.16901142]
[1734972408796,7.100566,184.28,184.2,33.16901142]
[1734972408978,7.100566,184.28,184.18,33.16901142]
[1734972409295,7.100566,184.28,184.17,53.16901142]
[1734972410574,7.100566,184.28,184.18,33.16901142]
[1734972411188,7.100566,184.28,184.15,0.81427041]
[1734972411396,23.902374,184.27,184.13,33.16901142]
[1734972411602,0.12549,184.21,184.08,41.32646989]
[1734972411748,0.12549,184.21,184.08,8.15745847]
[1734972411955,23.902374,184.21,184.08,8.15745847]
[1734972412155,6.3468,184.22,184.08,41.32646989]
[1734972412376,6.3468,184.22,184.1,33.16901142]
[1734972412688,6.3468,184.22,184.11,33.16901142]
[1734972412888,6.3468,184.22,184.08,33.16901142]
[1734972413090,23.902374,184.21,184.07,33.16901142]
[1734972413495,0.12549,184.19,184.06,33.16901142]
[1734972413793,20.0,184.18,184.06,33.16901142]
[1734972414084,20.0,184.18,184.05,33.16901142]
[1734972414798,20.0,184.18,184.06,33.16901142]
[1734972414984,20.0,184.18,184.07,33.16901142]
[1734972415293,4.0716,184.2,184.07,33.16901142]
[1734972415594,20.12549,184.19,184.04,33.16901142]
[1734972415881,6.3388,184.14,184.02,33.16901142]
[1734972416085,1.6119,184.13,184.0,33.16901142]
[1734972416250,1.6119,184.13,183.93,17.82951694]
[1734972416251,1.6119,184.13,183.99,33.16901142]
[1734972416885,20.0,184.09,183.96,33.16901142]
[1734972417289,20.0,184.09,183.97,33.16901142]
[1734972417575,27.976274,184.1,183.97,33.16901142]
[1734972417973,1.6119,184.13,184.02,33.16901142]
[1734972418166,1.6119,184.13,184.04,33.16901142]
[1734972418363,1.6119,184.13,184.03,33.16901142]
[1734972418562,1.6119,184.13,184.01,33.16901142]
[1734972418775,5.6853,184.13,184.0,33.16901142]
[1734972418972,0.12549,184.11,183.98,33.16901142]
[1734972419166,6.3388,184.12,183.99,33.16901142]
[1734972420482,1.6119,184.13,184.01,33.16901142]
[1734972420692,0.12549,184.12,184.0,33.16901142]
[1734972420857,6.46429,184.12,184.0,33.16901142]
[1734972421056,6.46429,184.12,183.99,33.16901142]
[1734972421279,6.46429,184.12,184.0,33.16901142]
[1734972421496,1.6119,184.13,184.02,33.16901142]
[1734972421665,1.6119,184.13,184.0,33.16901142]
[1734972422203,20.0,184.11,183.99,20.4547321]
[1734972422496,20.0,184.11,184.0,20.4547321]
[1734972422667,1.6119,184.13,184.02,20.4547321]
[1734972422863,1.6119,184.13,184.05,20.4547321]
[1734972423073,1.6119,184.13,184.04,20.4547321]
[1734972423270,1.6119,184.13,184.03,20.4547321]
[1734972423493,1.6119,184.13,184.02,20.4547321]
[1734972423704,1.6119,184.13,183.99,20.4547321]
[1734972423996,1.6119,184.13,184.0,20.4547321]
[1734972425282,1.6119,184.13,184.04,20.4547321]
[1734972426099,1.6119,184.13,184.05,23.776884]
[1734972426600,1.6119,184.13,184.04,20.4547321]
[1734972426820,1.6119,184.13,183.97,13.5888]
[1734972426981,1.6119,184.13,184.0,20.4547321]
[1734972427675,1.6119,184.13,183.99,13.5871]
[1734972427676,1.6119,184.13,184.02,20.4547321]
[1734972428301,1.6119,184.13,184.04,20.4547321]
[1734972429173,1.6119,184.13,184.06,20.4547321]
[1734972429575,1.6119,184.13,184.04,20.4547321]
[1734972429774,1.6119,184.13,184.05,23.776884]
[1734972430009,1.6119,184.13,184.06,20.4547321]
[1734972430382,7.9528,184.19,184.08,20.4547321]
[1734972430919,0.12549,184.18,184.05,20.4547321]
[1734972431215,4.19759,184.18,184.02,20.4547321]
[1734972431520,4.19759,184.18,184.03,20.4547321]
[1734972431679,23.776884,184.17,184.02,20.4547321]
[1734972432014,1.5523,184.11,183.98,20.4547321]
[1734972432217,1.5523,184.11,184.0,20.4547321]
[1734972432510,1.5523,184.11,183.99,20.4547321]
[1734972432816,1.5523,184.11,184.0,20.4547321]
[1734972433118,1.5523,184.11,184.0,20.0]
[1734972433500,23.902374,184.1,183.96,20.4547321]
[1734972434210,5.626,184.11,183.97,20.4547321]
[1734972434420,5.626,184.11,183.99,20.4547321]
[1734972434622,1.5523,184.11,184.02,20.4547321]
[1734972434784,1.5523,184.11,184.0,20.4547321]
[1734972435323,1.5523,184.11,183.98,20.4547321]
[1734972435815,1.5523,184.11,183.99,20.4547321]
[1734972436208,1.5523,184.11,184.02,20.4547321]
[1734972436698,1.5523,184.11,184.01,20.4547321]
[1734972436901,1.5523,184.11,184.0,20.4547321]
[1734972437106,1.5523,184.11,183.99,20.4547321]
[1734972437286,1.5523,184.11,184.0,20.4547321]
[1734972437489,1.5523,184.11,184.01,20.4547321]
[1734972437687,1.5523,184.11,184.05,20.4547321]
[1734972438015,6.4005,184.12,184.07,20.4547321]
[1734972438598,1.6088,184.15,184.07,20.4547321]
[1734972438800,1.6088,184.15,184.02,20.4547321]
[1734972439102,1.6088,184.15,184.08,20.4547321]
[1734972439310,1.6088,184.15,184.06,20.4547321]
[1734972439505,1.6088,184.15,184.08,20.4547321]
[1734972440019,1.6088,184.15,184.06,20.4547321]
[1734972440204,1.6088,184.15,184.04,20.4547321]
[1734972440517,1.6088,184.15,184.06,20.4547321]
[1734972441342,1.6088,184.15,184.08,20.4547321]
[1734972442020,6.5221,184.17,184.08,20.4547321]
[1734972442216,1.5027,184.2,184.16,20.4547321]
[1734972442392,6.488,184.22,184.18,20.4547321]